bitfinex-derivatives/quotes_BTCF0:USTF0_20250411
["timestamp","ask_amount","ask_price","bid_price","bid_amount"]
[1744402741673,0.6002089,83786.0,83785.0,0.15268934]
[1744402742472,0.5682089,83786.0,83785.0,0.15268934]
[1744402742675,0.5682089,83786.0,83785.0,0.18488934]
[1744402743873,0.5380089,83786.0,83785.0,0.18488934]
[1744402744077,0.5711089,83786.0,83785.0,0.18488934]
[1744402744274,0.5380089,83786.0,83785.0,0.18488934]
[1744402744478,0.1194089,83786.0,83785.0,0.18488934]
[1744402746384,0.238811,83789.0,83788.0,0.1194061]
[1744402746587,0.4186,83795.0,83791.0,0.0597008]
[1744402746788,0.03,83809.0,83795.0,0.1193961]
[1744402746992,0.1193854,83803.0,83795.0,0.13106104]
[1744402747189,0.14305319,83804.0,83795.0,0.19676104]
[1744402747687,0.14305319,83804.0,83795.0,0.2128123]
[1744402748083,0.14305319,83804.0,83795.0,0.21281131]
[1744402748687,0.14305319,83804.0,83795.0,0.19676104]
[1744402748887,0.14305319,83804.0,83798.0,0.1193918]
[1744402749090,0.14305319,83804.0,83798.0,0.4801918]
[1744402749290,0.14305319,83804.0,83798.0,0.7958918]
[1744402749595,0.26243659,83804.0,83798.0,0.81190692]
[1744402749787,0.119385,83803.0,83798.0,0.81190692]
[1744402749982,0.119385,83803.0,83802.0,0.1193861]
[1744402750187,0.119385,83803.0,83802.0,0.13540122]
[1744402750381,0.119385,83803.0,83802.0,0.19860122]
[1744402750989,0.1193826,83805.0,83804.0,0.1790713]
[1744402751195,0.1193826,83805.0,83804.0,0.25828642]
[1744402752394,0.1193826,83805.0,83804.0,0.29128642]
[1744402752997,0.00017904,83807.0,83806.0,0.1193804]
[1744402753194,0.00017904,83807.0,83806.0,0.20129552]
[1744402753589,0.00017904,83807.0,83806.0,0.1852804]
[1744402753988,0.00309838,83814.0,83813.0,0.1193705]
[1744402754192,0.00305838,83814.0,83813.0,0.4801705]
[1744402754496,0.00309838,83814.0,83813.0,0.4801705]
[1744402754697,0.00309838,83814.0,83813.0,0.5460705]
[1744402756297,0.00309838,83814.0,83813.0,0.5480705]
[1744402758692,0.00309838,83814.0,83813.0,0.56422078]
[1744402759198,5.401e-05,83818.0,83817.0,0.1193648]
[1744402759405,5.401e-05,83818.0,83817.0,0.22871508]
[1744402760402,5.401e-05,83818.0,83817.0,0.23071508]
[1744402760603,0.00017904,83822.0,83821.0,0.1193591]
[1744402760898,0.00017904,83822.0,83821.0,0.19660938]
[1744402761299,0.00017904,83822.0,83821.0,0.1804591]
[1744402762593,0.00017904,83822.0,83821.0,0.19755306]
[1744402763198,0.00017904,83822.0,83821.0,0.1814591]
[1744402763901,0.00017904,83822.0,83821.0,0.20933961]
[1744402764307,0.00017904,83822.0,83821.0,0.2180923]
[1744402764694,0.00017904,83822.0,83821.0,0.20209338]
[1744402765595,0.00017904,83822.0,83821.0,0.56289338]
[1744402766208,0.03057904,83822.0,83821.0,0.56289338]
[1744402766703,0.03057904,83822.0,83821.0,0.57880665]
[1744402768707,0.03057904,83822.0,83821.0,0.56289338]
[1744402769010,0.03057904,83822.0,83821.0,0.53239338]
[1744402769605,0.03057904,83822.0,83821.0,0.52051179]
[1744402774807,0.03057904,83822.0,83821.0,0.15971179]
[1744402775004,0.03057904,83822.0,83821.0,0.52051179]
[1744402780314,0.03057904,83822.0,83821.0,0.55231179]
[1744402780617,0.03057904,83822.0,83821.0,0.52051179]
[1744402781210,0.0596634,83844.0,83835.0,0.1193391]
[1744402781419,0.119328,83843.0,83835.0,0.4801391]
[1744402781621,0.031,83841.0,83835.0,0.8409391]
[1744402782314,0.00504,83836.0,83835.0,0.8419391]
[1744402782614,0.00504,83836.0,83835.0,0.9059391]
[1744402782807,0.064,83840.0,83839.0,0.1193334]
[1744402783011,0.0317,83840.0,83839.0,0.1193334]
[1744402783313,0.0317,83840.0,83839.0,0.1840334]
[1744402783517,0.03174,83840.0,83839.0,0.1840334]
[1744402784521,0.03174,83840.0,83839.0,0.1850334]
[1744402786214,0.03174,83840.0,83839.0,0.1525334]
[1744402787013,0.151072,83840.0,83839.0,0.1525334]
[1744402787418,0.06364,83840.0,83839.0,0.1525334]
[1744402795713,0.182972,83840.0,83839.0,0.1525334]
[1744402795914,0.06364,83840.0,83839.0,0.1525334]
[1744402799323,0.182972,83840.0,83839.0,0.1525334]
[1744402800318,0.182972,83840.0,83839.0,0.1203334]
[1744402801817,0.182972,83840.0,83839.0,0.1529334]
[1744402805130,0.182972,83840.0,83839.0,0.1203334]
[1744402806920,0.182972,83840.0,83839.0,0.001]
[1744402808929,0.259932,83840.0,83839.0,0.001]
[1744402819636,0.259892,83840.0,83839.0,0.001]
[1744402824040,0.259892,83840.0,83839.0,0.1507334]
[1744402824642,0.259892,83840.0,83839.0,0.0314]
[1744402832046,0.259892,83840.0,83839.0,0.1507334]
[1744402833262,0.259892,83840.0,83839.0,0.0314]
[1744402833561,0.40294519,83840.0,83839.0,0.0314]
[1744402837763,0.259892,83840.0,83839.0,0.0314]
[1744402838167,0.620692,83840.0,83839.0,0.0314]
[1744402838372,1.039292,83840.0,83839.0,0.0314]
[1744402838673,1.039292,83840.0,83839.0,0.1507334]
[1744402838860,0.614892,83840.0,83839.0,0.1507334]
[1744402839262,0.614932,83840.0,83839.0,0.1507334]
[1744402839664,0.41864,83840.0,83839.0,0.1507334]
[1744402839865,0.41864,83840.0,83839.0,0.4007334]
[1744402840169,0.00027734,83844.0,83839.0,0.4007334]
[1744402840170,0.00017892,83844.0,83843.0,0.1193277]
[1744402840369,0.00023293,83844.0,83843.0,0.1193277]
[1744402840574,0.00017892,83844.0,83843.0,0.1819277]
[1744402840867,0.17879337,83847.0,83846.0,0.1193235]
[1744402841073,0.19067094,83847.0,83846.0,0.49200107]
[1744402841370,0.19065693,83847.0,83846.0,0.80570107]
[1744402841573,0.19061693,83847.0,83846.0,0.80570107]
[1744402841964,0.17877936,83847.0,83846.0,0.80570107]
[1744402842170,0.17877936,83847.0,83846.0,0.82167147]
[1744402842471,4e-05,83847.0,83846.0,0.82167147]
[1744402842669,4e-05,83847.0,83846.0,0.82267147]
[1744402842970,4e-05,83847.0,83846.0,0.82265963]
[1744402843162,4e-05,83847.0,83846.0,0.80670107]
[1744402843472,4e-05,83847.0,83846.0,0.82540107]
[1744402843769,4e-05,83847.0,83846.0,0.57540107]
[1744402846669,4e-05,83847.0,83846.0,0.93620107]
[1744402846873,5.401e-05,83853.0,83852.0,0.1193149]
[1744402847069,0.00011768,83855.0,83854.0,0.1193121]
[1744402847267,0.00011768,83855.0,83854.0,0.4801121]
[1744402847463,0.00011768,83855.0,83854.0,0.5417121]
[1744402848970,0.00011768,83855.0,83854.0,0.5427121]
[1744402850375,0.005,83862.0,83861.0,0.1193021]
[1744402850577,0.0312,83867.0,83861.0,0.1193021]
[1744402850578,0.0632,83876.0,83868.0,0.1192922]
[1744402850773,0.01161268,83873.0,83872.0,0.1192865]
[1744402850978,0.0325,83874.0,83873.0,0.1192851]
[1744402851171,0.0116222,83874.0,83873.0,0.1192851]
[1744402851371,0.14316246,83879.0,83878.0,0.119278]
[1744402851577,0.14316246,83879.0,83878.0,0.4892184]
[1744402851774,0.1192716,83883.0,83882.0,0.1192723]
[1744402852973,0.1193116,83883.0,83882.0,0.1192723]
[1744402853879,0.1507116,83883.0,83882.0,0.1192723]
[1744402854069,0.1838116,83883.0,83882.0,0.1192723]
[1744402854571,0.1838116,83883.0,83882.0,0.1202723]
[1744402854771,0.2158116,83883.0,83882.0,0.1202723]
[1744402863289,0.2158116,83883.0,83882.0,0.1526723]
[1744402867990,0.2158116,83883.0,83882.0,0.5134723]
[1744402873698,0.03204,83883.0,83882.0,0.5134723]
[1744402873896,0.03204,83883.0,83882.0,0.5461723]
[1744402874093,0.032,83883.0,83882.0,0.5461723]
[1744402874290,7.291e-05,83894.0,83882.0,0.6769]
[1744402874496,9.842e-05,83897.0,83896.0,0.1192524]
[1744402874895,0.0655,83899.0,83898.0,0.1192495]
[1744402875296,0.0655,83899.0,83898.0,0.1498495]
[1744402877403,0.0655,83899.0,83898.0,0.1508495]
[1744402878103,0.0328,83899.0,83898.0,0.1809495]
[1744402878303,0.0636,83899.0,83898.0,0.1968872]
[1744402878604,0.1828481,83899.0,83898.0,0.1667872]
[1744402879403,0.0636,83899.0,83898.0,0.1508495]
[1744402881304,0.1828481,83899.0,83898.0,0.36366761]
[1744402881507,0.0636,83899.0,83898.0,0.36366761]
[1744402882307,0.1192328,83910.0,83906.0,0.1192381]
[1744402882508,0.0307,83908.0,83906.0,0.4800381]
[1744402883103,0.0307,83908.0,83906.0,0.5446381]
[1744402883407,0.03124,83907.0,83906.0,0.5446381]
[1744402883908,0.03124,83907.0,83906.0,0.5456381]
[1744402885102,0.06344,83907.0,83906.0,0.5456381]
[1744402886010,0.1826767,83907.0,83906.0,0.5456381]
[1744402886308,0.09514,83907.0,83906.0,0.5132381]
[1744402886508,0.2143767,83907.0,83906.0,0.5132381]
[1744402886709,0.2143767,83907.0,83906.0,0.1524381]
[1744402887004,0.09514,83907.0,83906.0,0.1524381]
[1744402887611,0.06294,83907.0,83906.0,0.1524381]
[1744402887812,0.03124,83907.0,83906.0,0.1829381]
[1744402888309,0.03124,83907.0,83906.0,0.19952733]
[1744402889505,0.03124,83907.0,83906.0,0.19952231]
[1744402891405,0.03124,83907.0,83906.0,0.19924446]
[1744402891913,0.09524,83907.0,83906.0,0.19924446]
[1744402893415,0.09524,83907.0,83906.0,0.199324]
[1744402897015,0.09524,83907.0,83906.0,0.16905014]
[1744402901216,0.09524,83907.0,83906.0,0.18526204]
[1744402901410,0.09524,83907.0,83906.0,0.19801842]
[1744402901614,0.005,83914.0,83908.0,0.0596174]
[1744402901813,0.0377,83914.0,83913.0,0.4800282]
[1744402902016,0.0377,83914.0,83913.0,0.50939662]
[1744402902315,0.00013287,83921.0,83915.0,0.0596125]
[1744402902616,1e-08,83922.0,83921.0,0.1192168]
[1744402902808,0.17873936,83936.0,83930.0,0.119204]
[1744402903014,7.291e-05,83934.0,83930.0,0.1505939]
[1744402903214,0.1191993,83934.0,83930.0,0.1668058]
[1744402903409,0.26240506,83931.0,83930.0,0.1668058]
[1744402903918,0.26240506,83931.0,83930.0,0.15404645]
[1744402904106,0.26240506,83931.0,83930.0,0.16697373]
[1744402904306,0.14320246,83931.0,83930.0,0.16697373]
[1744402904717,4e-05,83931.0,83930.0,0.16697373]
[1744402905126,0.1192426,83931.0,83930.0,0.16697373]
[1744402905313,0.1192426,83931.0,83930.0,0.16797373]
[1744402905722,0.1192426,83931.0,83930.0,0.16697373]
[1744402906023,0.1192426,83931.0,83930.0,0.04876973]
[1744402906427,0.1192426,83931.0,83930.0,0.16797373]
[1744402906919,0.1515426,83931.0,83930.0,0.16797373]
[1744402908422,0.1515426,83931.0,83930.0,0.15504645]
[1744402909316,0.1515426,83931.0,83930.0,0.16410903]
[1744402910417,0.03234,83931.0,83930.0,0.20846079]
[1744402910615,0.1515426,83931.0,83930.0,0.20846079]
[1744402911313,0.1515426,83931.0,83930.0,0.20845994]
[1744402913218,0.03234,83931.0,83930.0,0.20845994]
[1744402913422,0.1515426,83931.0,83930.0,0.20845994]
[1744402916018,0.1515426,83931.0,83930.0,0.20849203]
[1744402916625,0.1515026,83931.0,83930.0,0.20849203]
[1744402916827,0.1515426,83931.0,83930.0,0.20849203]
[1744402918122,4e-05,83931.0,83930.0,0.20849203]
[1744402918527,4e-05,83931.0,83930.0,0.20785072]
[1744402919327,0.1192026,83931.0,83930.0,0.23585272]
[1744402919523,0.1508426,83931.0,83930.0,0.09943682]
[1744402919828,0.1192112,83925.0,83924.0,0.15373597]
[1744402920129,0.119214,83923.0,83909.0,0.00875092]
[1744402920322,0.119214,83923.0,83910.0,0.1192321]
[1744402920527,0.432514,83923.0,83909.0,0.06836772]
[1744402920725,0.432514,83923.0,83911.0,0.1192299]
[1744402921031,0.432514,83923.0,83912.0,0.1192296]
[1744402921331,0.432514,83923.0,83910.0,0.0596161]
[1744402921332,0.1192339,83909.0,83908.0,0.35712305]
[1744402921521,0.5592739,83909.0,83908.0,0.35712305]
[1744402921723,0.9200739,83909.0,83908.0,0.35712305]
[1744402921919,0.9833739,83909.0,83908.0,0.35712305]
[1744402922325,1.2333739,83909.0,83908.0,0.35712305]
[1744402922827,1.2652739,83909.0,83908.0,0.35712305]
[1744402923127,1.0152739,83909.0,83908.0,0.35712305]
[1744402923427,0.1192453,83901.0,83900.0,0.00017881]
[1744402924127,0.4800453,83901.0,83900.0,0.00017881]
[1744402924429,0.5452453,83901.0,83900.0,0.00017881]
[1744402925131,0.5452453,83901.0,83900.0,0.11942551]
[1744402925328,0.1844453,83901.0,83900.0,0.11942551]
[1744402925726,0.1844453,83901.0,83900.0,0.12042551]
[1744402925925,0.1844453,83901.0,83900.0,0.15162551]
[1744402926122,0.1844853,83901.0,83900.0,0.15162551]
[1744402927335,0.03224,83901.0,83900.0,0.15162551]
[1744402927522,4e-05,83901.0,83900.0,0.18342551]
[1744402927734,0.1192365,83908.0,83907.0,0.1192367]
[1744402928033,0.1192365,83908.0,83907.0,0.4800367]
[1744402928427,0.1192365,83908.0,83907.0,0.5446367]
[1744402929032,0.1192765,83908.0,83907.0,0.5446367]
[1744402929543,0.1192765,83908.0,83907.0,0.5456367]
[1744402931733,0.1192765,83908.0,83907.0,0.57673785]
[1744402932237,0.1192765,83908.0,83907.0,0.59309202]
[1744402933644,0.1192765,83908.0,83907.0,0.59315641]
[1744402933844,4e-05,83908.0,83907.0,0.59315641]
[1744402934140,0.1192753,83908.0,83907.0,0.59315398]
[1744402935040,0.03094,83908.0,83907.0,0.59315398]
[1744402935439,0.1192753,83908.0,83907.0,0.59315398]
[1744402935834,0.1192753,83908.0,83907.0,0.59357157]
[1744402936937,0.1192753,83908.0,83907.0,0.04893487]
[1744402937135,0.1192753,83908.0,83907.0,0.0359867]
[1744402937539,0.1840753,83908.0,83907.0,0.0359867]
[1744402938634,0.1840753,83908.0,83907.0,0.01735417]
[1744402939346,0.1788672,83903.0,83902.0,0.119243]
[1744402939535,0.2625072,83903.0,83902.0,0.15041867]
[1744402939735,0.3258072,83903.0,83902.0,0.15041867]
[1744402940742,0.6866072,83903.0,83902.0,0.15041867]
[1744402943446,0.6866072,83903.0,83902.0,0.03117567]
[1744402943848,0.6866072,83903.0,83902.0,0.15041947]
[1744402944952,0.6866072,83903.0,83902.0,0.13194792]
[1744402945551,0.6866072,83903.0,83902.0,0.1192438]
[1744402946048,0.6866072,83903.0,83902.0,0.14993269]
[1744402946349,0.6866072,83903.0,83902.0,0.1192438]
[1744402946652,0.6866072,83903.0,83902.0,0.14994607]
[1744402946844,0.6866072,83903.0,83902.0,0.14994761]
[1744402947044,0.6866072,83903.0,83902.0,0.1192438]
[1744402947246,0.6866072,83903.0,83902.0,0.13732486]
[1744402947446,0.6866072,83903.0,83902.0,0.1192438]
[1744402947646,0.6866072,83903.0,83902.0,0.13196747]
[1744402947951,0.6866072,83903.0,83902.0,0.15004543]
[1744402948152,0.6866072,83903.0,83902.0,0.15006678]
[1744402948954,0.6866072,83903.0,83902.0,0.18086678]
[1744402949456,0.6866072,83903.0,83902.0,0.1500438]
[1744402949842,0.3258072,83903.0,83902.0,0.1500438]
[1744402950048,0.3258072,83903.0,83902.0,0.18094475]
[1744402950356,0.6866072,83903.0,83902.0,0.18094475]
[1744402951855,0.6866072,83903.0,83902.0,0.19697864]
[1744402953357,0.6866072,83903.0,83902.0,0.19652521]
[1744402954457,0.6866072,83903.0,83902.0,0.18049132]
[1744402956257,0.6866072,83903.0,83902.0,0.16772347]
[1744402960663,0.6866072,83903.0,83902.0,0.1500438]
[1744402961365,0.6866072,83903.0,83902.0,0.16746046]
[1744402962463,0.6866072,83903.0,83902.0,0.21289296]
[1744402963466,0.6866072,83903.0,83902.0,0.20016046]
[1744402964967,0.2625072,83903.0,83902.0,0.20016046]
[1744402965169,0.2625472,83903.0,83902.0,0.20016046]
[1744402965467,0.2625472,83903.0,83902.0,0.21296095]
[1744402966266,4e-05,83903.0,83902.0,0.2132719]
[1744402966464,4e-05,83903.0,83902.0,0.4632719]
[1744402966762,0.0596205,83904.0,83903.0,0.17886]
[1744402966962,0.0596205,83904.0,83903.0,0.2690085]
[1744402967171,0.0596205,83904.0,83903.0,0.3308085]
[1744402967471,0.0596205,83904.0,83903.0,0.31800762]
[1744402970472,0.0596205,83904.0,83903.0,0.33076458]
[1744402971788,0.0596205,83904.0,83903.0,0.33087399]
[1744402972782,0.0596205,83904.0,83903.0,0.15201399]
[1744402972975,0.0596205,83904.0,83903.0,0.06089359]
[1744402973180,0.1253205,83904.0,83903.0,0.03059359]
[1744402973884,0.1253205,83904.0,83903.0,0.04634833]
[1744402975585,0.1253205,83904.0,83903.0,0.03348196]
[1744402977086,0.1253205,83904.0,83903.0,0.03325504]
[1744402977381,0.1253205,83904.0,83903.0,0.01575474]
[1744402977786,0.1253205,83904.0,83900.0,0.00017881]
[1744402977787,0.1192453,83901.0,83900.0,0.00017881]
[1744402977975,0.4800453,83901.0,83900.0,0.00017881]
[1744402979790,0.1192467,83900.0,83899.0,0.00476761]
[1744402979989,0.1824467,83900.0,83899.0,0.00476761]
[1744402982183,0.6010467,83900.0,83899.0,0.00476761]
[1744402985584,0.119258,83892.0,83891.0,0.03327881]
[1744402985784,0.561378,83892.0,83891.0,0.05063513]
[1744402986082,0.623778,83892.0,83891.0,0.08203513]
[1744402986696,0.623778,83892.0,83891.0,0.09481671]
[1744402986985,0.623778,83892.0,83891.0,0.06341671]
[1744402987590,0.623778,83892.0,83891.0,0.05063513]
[1744402988391,0.63597721,83892.0,83891.0,0.05063513]
[1744402989590,0.63597721,83892.0,83891.0,0.03327881]
[1744402991493,0.561378,83892.0,83891.0,0.15253831]
[1744402991691,0.561418,83892.0,83891.0,0.18313831]
[1744402992598,0.561418,83892.0,83891.0,0.19945696]
[1744402992992,0.561418,83892.0,83891.0,0.21513346]
[1744402994694,0.561418,83892.0,83891.0,0.09587396]
[1744402994898,0.593818,83892.0,83891.0,0.06527396]
[1744402995197,0.624318,83892.0,83891.0,0.06528717]
[1744402995393,0.624318,83892.0,83891.0,0.04961067]
[1744402995702,0.624318,83892.0,83891.0,0.03327881]
[1744402996491,0.624318,83892.0,83891.0,0.04954101]
[1744402998193,0.624318,83892.0,83891.0,0.03327881]
[1744402998494,0.624318,83892.0,83891.0,0.04955054]
[1744402998999,0.624318,83892.0,83891.0,0.07975054]
[1744403000093,0.593818,83892.0,83891.0,0.07977184]
[1744403001001,0.561418,83892.0,83891.0,0.07977184]
[1744403001697,0.561418,83892.0,83891.0,0.03220113]
[1744403001894,0.626018,83892.0,83891.0,0.03220113]
[1744403002099,0.593718,83892.0,83891.0,0.03220113]
[1744403003195,0.626618,83892.0,83891.0,0.03220113]
[1744403004504,0.265818,83892.0,83891.0,0.01647184]
[1744403004811,0.626618,83892.0,83891.0,0.01647184]
[1744403008309,0.626618,83892.0,83891.0,0.01631903]
[1744403009303,0.626618,83892.0,83891.0,0.01631968]
[1744403009910,0.76937166,83892.0,83891.0,0.01631968]
[1744403010707,0.76937166,83892.0,83891.0,0.00017881]
[1744403010907,0.40857166,83892.0,83891.0,0.00017881]
[1744403011103,0.76937166,83892.0,83891.0,0.00017881]
[1744403012912,0.40857166,83892.0,83891.0,0.00017881]
[1744403013212,0.626618,83892.0,83891.0,0.00017881]
[1744403016814,0.626618,83892.0,83891.0,0.01619546]
[1744403017510,0.626618,83892.0,83891.0,0.01619588]
[1744403017711,0.626618,83892.0,83891.0,0.00017881]
[1744403018221,0.265818,83892.0,83891.0,0.00017881]
[1744403018519,0.626618,83892.0,83891.0,0.00017881]
[1744403019923,0.265818,83892.0,83891.0,0.00017881]
[1744403020222,0.626618,83892.0,83891.0,0.00017881]
[1744403021120,0.76965935,83892.0,83891.0,0.00017881]
[1744403022218,0.76961935,83892.0,83891.0,0.00017881]
[1744403023323,0.68829935,83892.0,83891.0,0.00017881]
[1744403023517,0.73763935,83892.0,83891.0,0.00017881]
[1744403023713,0.73767935,83892.0,83891.0,0.00017881]
[1744403023918,0.594638,83892.0,83891.0,0.00017881]
[1744403027826,0.594638,83892.0,83891.0,0.01630478]
[1744403029134,0.626238,83892.0,83891.0,0.01630478]
[1744403033027,0.265438,83892.0,83891.0,0.01630478]
[1744403033729,0.626238,83892.0,83891.0,0.01630478]
[1744403033925,0.626238,83892.0,83891.0,0.00017881]
[1744403034923,0.626238,83892.0,83891.0,0.01619489]
[1744403037026,0.626238,83892.0,83891.0,0.01649718]
[1744403037426,0.626238,83892.0,83891.0,0.01649719]
[1744403037628,0.543998,83892.0,83891.0,0.01649719]
[1744403037826,0.624278,83892.0,83891.0,0.03228757]
[1744403038425,0.624278,83892.0,83891.0,0.03270493]
[1744403040625,0.263478,83892.0,83891.0,0.03270493]
[1744403040834,0.624278,83892.0,83891.0,0.03270493]
[1744403042756,0.76737284,83892.0,83891.0,0.03270493]
[1744403046857,0.76737284,83892.0,83891.0,0.03238587]
[1744403050361,0.624278,83892.0,83891.0,0.03238587]
[1744403050657,0.624278,83892.0,83891.0,0.03237874]
[1744403050956,4e-05,83892.0,83891.0,0.15163824]
[1744403051152,0.0596283,83893.0,83891.0,0.27556794]
[1744403051457,0.0596283,83893.0,83891.0,0.24336801]
[1744403051458,0.119298,83892.0,83891.0,0.24336801]
[1744403051657,0.119298,83892.0,83891.0,0.2597644]
[1744403052257,0.119298,83892.0,83891.0,0.27571896]
[1744403052858,4e-05,83892.0,83891.0,0.52571896]
[1744403053056,4e-05,83892.0,83891.0,0.88651896]
[1744403053358,0.17873936,83897.0,83896.0,0.1192524]
[1744403053550,0.17873936,83897.0,83896.0,0.15153349]
[1744403053751,0.12883936,83897.0,83896.0,0.46363349]
[1744403053947,0.24813026,83897.0,83896.0,0.46363349]
[1744403054146,0.24809026,83897.0,83896.0,0.46363349]
[1744403054360,0.24813026,83897.0,83896.0,0.46363349]
[1744403054760,0.1192909,83897.0,83896.0,0.46363349]
[1744403055155,0.1192909,83897.0,83896.0,0.44767893]
[1744403056150,0.1192909,83897.0,83896.0,0.19767893]
[1744403057051,0.1192909,83897.0,83896.0,0.55847893]
[1744403057958,0.1192909,83897.0,83896.0,0.5421524]
[1744403059158,0.1192909,83897.0,83896.0,0.55810758]
[1744403059355,0.1192909,83897.0,83896.0,0.19730758]
[1744403059563,0.1192909,83897.0,83896.0,0.55810758]
[1744403060157,4e-05,83897.0,83896.0,0.57380507]
[1744403061060,4e-05,83897.0,83896.0,0.55784989]
[1744403061262,4e-05,83897.0,83896.0,0.5740779]
[1744403061756,4e-05,83897.0,83896.0,0.78768581]
[1744403063059,0.1192909,83897.0,83896.0,0.78768581]
[1744403063250,0.1192909,83897.0,83896.0,0.42688581]
[1744403063450,0.1502909,83897.0,83896.0,0.78768581]
[1744403064154,0.1502909,83897.0,83896.0,0.78696031]
[1744403066067,0.1502909,83897.0,83896.0,0.5733524]
[1744403067567,0.1825909,83897.0,83896.0,0.5733524]
[1744403068265,0.1825909,83897.0,83896.0,0.5421524]
[1744403068465,0.1825909,83897.0,83896.0,0.5120524]
[1744403068667,0.1825909,83897.0,83893.0,0.21360791]
[1744403068668,0.1192552,83894.0,83893.0,0.21360791]
[1744403068869,0.1192552,83894.0,83893.0,0.36306451]
[1744403069068,0.2156552,83894.0,83893.0,0.37912349]
[1744403069976,0.2156552,83894.0,83893.0,0.39481844]
[1744403070173,0.2156552,83894.0,83893.0,0.18121053]
[1744403071672,0.2156552,83894.0,83893.0,0.03175393]
[1744403071974,0.2156552,83894.0,83893.0,0.15101053]
[1744403075676,0.2156552,83894.0,83893.0,0.03175393]
[1744403077075,0.2156552,83894.0,83893.0,0.1192566]
[1744403079078,0.2156552,83894.0,83893.0,0.13522801]
[1744403079879,0.2156552,83894.0,83893.0,0.1352316]
[1744403080078,0.2156552,83894.0,83893.0,0.1192566]
[1744403081079,0.2156552,83894.0,83893.0,0.13523343]
[1744403081579,0.2156552,83894.0,83893.0,0.01597683]
[1744403082082,0.119258,83892.0,83891.0,0.17906651]
[1744403082474,0.183158,83892.0,83891.0,0.17906651]
[1744403090085,0.183158,83892.0,83891.0,0.24296651]
[1744403090487,0.183158,83892.0,83891.0,0.60376651]
[1744403090786,0.183158,83892.0,83891.0,0.24296651]
[1744403098387,0.183158,83892.0,83891.0,0.45652128]
[1744403102799,0.183158,83892.0,83891.0,0.24296651]
[1744403103194,0.119258,83892.0,83891.0,0.24296651]
[1744403103396,0.22652615,83895.0,83894.0,0.1192552]
[1744403103591,0.22652615,83895.0,83894.0,0.4800552]
[1744403103793,0.22652615,83895.0,83894.0,0.5441552]
[1744403104801,0.22656615,83895.0,83894.0,0.5441552]
[1744403106401,0.119295,83895.0,83894.0,0.5441552]
[1744403106801,0.149395,83895.0,83894.0,0.5441552]
[1744403109004,0.149395,83895.0,83894.0,0.55989212]
[1744403109203,0.149395,83895.0,83894.0,0.57611937]
[1744403110507,0.149395,83895.0,83894.0,0.5761506]
[1744403113713,0.149395,83895.0,83894.0,0.2153506]
[1744403113912,0.149395,83895.0,83894.0,0.5761506]
[1744403114112,0.119295,83895.0,83894.0,0.58895154]
[1744403115813,0.119295,83895.0,83894.0,0.58932513]
[1744403116013,0.1192938,83895.0,83894.0,0.58932513]
[1744403116220,4e-05,83895.0,83894.0,0.58932513]
[1744403116408,0.10732516,83899.0,83898.0,0.1192495]
[1744403116609,0.22651925,83899.0,83898.0,0.14868251]
[1744403116915,0.10731115,83899.0,83898.0,0.14868251]
[1744403117117,4e-05,83899.0,83898.0,0.15161849]
[1744403117420,4e-05,83899.0,83898.0,0.24491849]
[1744403118820,0.1192881,83899.0,83898.0,0.24491849]
[1744403119018,0.1522881,83899.0,83898.0,0.21481849]
[1744403119211,0.1849881,83899.0,83898.0,0.21481849]
[1744403120813,0.03304,83899.0,83898.0,0.57561849]
[1744403121113,0.1522881,83899.0,83898.0,0.57561849]
[1744403121321,0.1522881,83899.0,83898.0,0.5752207]
[1744403121917,0.1522881,83899.0,83898.0,0.55948378]
[1744403123118,0.1522881,83899.0,83898.0,0.57519122]
[1744403123613,0.03304,83899.0,83898.0,0.57519122]
[1744403123820,0.1522881,83899.0,83898.0,0.57519122]
[1744403124522,0.1842881,83899.0,83898.0,0.57519122]
[1744403125221,0.1842881,83899.0,83898.0,0.55895694]
[1744403125420,0.1842881,83899.0,83898.0,0.5432495]
[1744403126024,0.1842881,83899.0,83898.0,0.5120495]
[1744403126222,0.1842881,83899.0,83898.0,0.52803761]
[1744403128524,0.1842881,83899.0,83898.0,0.5120495]
[1744403128723,0.1842881,83899.0,83898.0,0.52803441]
[1744403129224,0.1842881,83899.0,83898.0,0.5120495]
[1744403130228,0.1842881,83899.0,83898.0,0.1512495]
[1744403130428,0.1842881,83899.0,83898.0,0.5120495]
[1744403131727,0.1842881,83899.0,83898.0,0.4800495]
[1744403131929,0.1192509,83897.0,83896.0,0.28511241]
[1744403132125,0.4800509,83897.0,83896.0,0.28511241]
[1744403132327,0.1192538,83895.0,83894.0,0.1192549]
[1744403132829,0.1843538,83895.0,83894.0,0.1192549]
[1744403134523,0.0327,83895.0,83894.0,0.1192549]
[1744403134721,0.07765881,83900.0,83899.0,0.1192481]
[1744403134927,0.07771282,83900.0,83899.0,0.1192481]
[1744403135125,0.19690551,83900.0,83899.0,0.1508481]
[1744403135321,0.19694551,83900.0,83899.0,0.1508481]
[1744403135527,0.07769881,83900.0,83899.0,0.1508481]
[1744403135731,0.19694551,83900.0,83899.0,0.1508481]
[1744403136025,0.22764551,83900.0,83899.0,0.1812481]
[1744403136323,0.25834551,83900.0,83899.0,0.1812481]
[1744403137022,0.36561666,83900.0,83899.0,0.1812481]
[1744403137826,0.28813666,83900.0,83899.0,0.1812481]
[1744403138032,0.10748996,83900.0,83899.0,0.1812481]
[1744403138328,5.401e-05,83904.0,83903.0,0.1192424]
[1744403138521,0.1430282,83905.0,83904.0,0.119241]
[1744403138926,0.1430682,83905.0,83904.0,0.182141]
[1744403140830,4e-05,83905.0,83904.0,0.19433559]
[1744403144127,0.00017845,83913.0,83912.0,0.1192296]
[1744403144332,0.11940665,83913.0,83912.0,0.5768296]
[1744403144831,0.15060665,83913.0,83912.0,0.5133296]
[1744403145027,0.21430665,83913.0,83912.0,0.5133296]
[1744403145431,0.21430665,83913.0,83912.0,0.1525296]
[1744403145631,0.21430665,83913.0,83912.0,0.5133296]
[1744403151737,0.21430665,83913.0,83912.0,0.1525296]
[1744403153745,0.21430665,83913.0,83912.0,0.1192296]
[1744403155241,0.0596149,83912.0,83908.0,0.21347254]
[1744403155445,0.0596188,83907.0,83903.0,0.28463006]
[1744403155646,0.119241,83904.0,83903.0,0.28463006]
[1744403156139,0.214541,83904.0,83903.0,0.28463006]
[1744403158849,0.1788863,83894.0,83893.0,0.0596282]
[1744403159142,0.119258,83892.0,83891.0,0.05980821]
[1744403159343,0.119258,83892.0,83891.0,0.00017881]
[1744403159848,0.182258,83892.0,83891.0,0.00017881]
[1744403160640,0.182298,83892.0,83891.0,0.00017881]
[1744403161145,0.182258,83892.0,83891.0,0.00017881]
[1744403161352,0.182298,83892.0,83891.0,0.00017881]
[1744403163048,0.182298,83892.0,83891.0,0.11943831]
[1744403165342,0.213798,83892.0,83891.0,0.11943831]
[1744403166355,0.213798,83892.0,83891.0,0.00017881]